[Event "*** MasterClass Titled Tuesday Blitz"]
[Site "Chess.com"]
[Date "2017.12.05"]
[Round "8"]
[White "Vamostodorecto"]
[Black "TregubovP"]
[Result "0-1"]
[WhiteElo "2326"]
[BlackElo "2500"]
[TimeControl "180+2"]
[EndTime "15:54:03 PST"]
[Termination "TregubovP won by resignation"]

1. c4 {[%clk 0:03:01.9]} 1... c5 {[%clk 0:02:56.7]} 2. d4 {[%clk 0:02:56.4]}
2... cxd4 {[%clk 0:02:56.5]} 3. Nf3 {[%clk 0:02:56.9]} 3... e5 {[%clk
0:02:54.8]} 4. e3 {[%clk 0:02:54.8]} 4... dxe3 {[%clk 0:02:43.9]} 5. Bxe3 {[%clk
0:02:54.9]} 5... Nc6 {[%clk 0:02:43.6]} 6. a3 {[%clk 0:02:49]} 6... Nf6 {[%clk
0:02:41.5]} 7. Nc3 {[%clk 0:02:45]} 7... Be7 {[%clk 0:02:41]} 8. Bd3 {[%clk
0:02:44.6]} 8... d5 {[%clk 0:02:34.7]} 9. cxd5 {[%clk 0:02:44.5]} 9... Nxd5
{[%clk 0:02:35.7]} 10. Nxd5 {[%clk 0:02:42.8]} 10... Qxd5 {[%clk 0:02:35.9]} 11.
Qc2 {[%clk 0:02:42]} 11... Be6 {[%clk 0:02:31.3]} 12. Be4 {[%clk 0:02:37.4]}
12... Qa5+ {[%clk 0:02:26.3]} 13. Bd2 {[%clk 0:02:36.9]} 13... Qb5 {[%clk
0:02:16.1]} 14. Bd3 {[%clk 0:02:11.8]} 14... Qb3 {[%clk 0:02:14.1]} 15. Qxb3
{[%clk 0:02:06.6]} 15... Bxb3 {[%clk 0:02:14.1]} 16. Bb5 {[%clk 0:02:08.3]}
16... f6 {[%clk 0:01:54.7]} 17. Rc1 {[%clk 0:02:01.1]} 17... Rc8 {[%clk
0:01:53.2]} 18. Be3 {[%clk 0:02:01.8]} 18... a6 {[%clk 0:01:52.6]} 19. Bxc6+
{[%clk 0:02:01.2]} 19... Rxc6 {[%clk 0:01:51.9]} 20. Rxc6 {[%clk 0:02:01.4]}
20... bxc6 {[%clk 0:01:52.9]} 21. Kd2 {[%clk 0:01:59.9]} 21... Kd7 {[%clk
0:01:50.7]} 22. Rd1 {[%clk 0:01:56.1]} 22... Bxd1 {[%clk 0:01:50.1]} 0-1

[Event "*** MasterClass Titled Tuesday Blitz"]
[Site "Chess.com"]
[Date "2017.12.05"]
[Round "8"]
[White "ZABDIELBLANCO"]
[Black "DiogenesSinopeus"]
[Result "0-1"]
[WhiteElo "1222"]
[BlackElo "2351"]
[TimeControl "180+2"]
[EndTime "15:55:01 PST"]
[Termination "DiogenesSinopeus won by resignation"]

1. d4 {[%clk 0:01:50.6]} 1... Nf6 {[%clk 0:02:59.5]} 2. c4 {[%clk 0:01:49.8]}
2... g6 {[%clk 0:02:44.2]} 3. Nc3 {[%clk 0:01:46.1]} 3... d5 {[%clk 0:02:44.3]}
4. cxd5 {[%clk 0:01:40.7]} 4... Nxd5 {[%clk 0:02:46.2]} 5. e3 {[%clk 0:01:42.2]}
5... Bg7 {[%clk 0:02:45.1]} 6. Nxd5 {[%clk 0:01:42.3]} 6... Qxd5 {[%clk
0:02:45.3]} 7. b3 {[%clk 0:01:42.7]} 7... O-O {[%clk 0:02:38]} 8. Nf3 {[%clk
0:01:44.1]} 8... c5 {[%clk 0:02:34.7]} 9. Bc4 {[%clk 0:01:45.6]} 9... Qh5 {[%clk
0:02:35.4]} 10. dxc5 {[%clk 0:01:44]} 10... Bxa1 {[%clk 0:02:34.1]} 11. e4
{[%clk 0:01:38.2]} 11... Bg4 {[%clk 0:02:26]} 12. Bh6 {[%clk 0:01:30.9]} 12...
Bc3+ {[%clk 0:02:22.2]} 13. Ke2 {[%clk 0:00:54.3]} 13... Qxh6 {[%clk 0:02:13.6]}
14. Qd5 {[%clk 0:00:41.1]} 14... Nc6 {[%clk 0:02:07.7]} 15. h3 {[%clk
0:00:32.6]} 15... Rad8 {[%clk 0:02:04.3]} 16. Qg5 {[%clk 0:00:20.2]} 16... Qxg5
{[%clk 0:02:01.6]} 0-1

[Event "*** MasterClass Titled Tuesday Blitz"]
[Site "Chess.com"]
[Date "2017.12.05"]
[Round "8"]
[White "VeryAnonymousPatzer"]
[Black "Sola00"]
[Result "0-1"]
[WhiteElo "1129"]
[BlackElo "1545"]
[TimeControl "180+2"]
[EndTime "15:55:31 PST"]
[Termination "Sola00 won on time"]

1. e4 {[%clk 0:03:01.9]} 1... e6 {[%clk 0:02:59.1]} 2. d4 {[%clk 0:03:02.1]}
2... d5 {[%clk 0:02:55.1]} 3. exd5 {[%clk 0:03:00]} 3... exd5 {[%clk 0:02:57]}
4. Nf3 {[%clk 0:02:53.8]} 4... Bd6 {[%clk 0:02:58.1]} 5. Bb5+ {[%clk 0:02:46.8]}
5... c6 {[%clk 0:02:58.9]} 6. Bd3 {[%clk 0:01:42.9]} 6... Nf6 {[%clk 0:02:48]}
7. O-O {[%clk 0:01:40.2]} 7... O-O {[%clk 0:02:48.5]} 8. Nc3 {[%clk 0:01:39.3]}
8... Bg4 {[%clk 0:02:49.6]} 9. Bg5 {[%clk 0:01:38.2]} 9... Nbd7 {[%clk
0:02:50.2]} 10. h3 {[%clk 0:01:37]} 10... Bh5 {[%clk 0:02:51]} 11. Be2 {[%clk
0:01:27.4]} 11... Qc7 {[%clk 0:02:51.7]} 12. Bh4 {[%clk 0:01:10.8]} 12... Rfe8
{[%clk 0:02:45.5]} 13. Bg3 {[%clk 0:00:42.2]} 13... Bxg3 {[%clk 0:02:45.2]} 14.
fxg3 {[%clk 0:00:40.7]} 14... Qxg3 {[%clk 0:02:45]} 15. Nh2 {[%clk 0:00:35.5]}
15... Bxe2 {[%clk 0:02:45.4]} 16. Nxe2 {[%clk 0:00:31.2]} 16... Qe3+ {[%clk
0:02:42.6]} 17. Rf2 {[%clk 0:00:28.9]} 17... Ne4 {[%clk 0:02:38.7]} 18. Qd3
{[%clk 0:00:10.4]} 18... Qxf2+ {[%clk 0:02:34.2]} 19. Kh1 {[%clk 0:00:08.2]}
19... Qxe2 {[%clk 0:02:28.2]} 20. Qxe2 {[%clk 0:00:08.3]} 20... Ng3+ {[%clk
0:02:29.4]} 21. Kg1 {[%clk 0:00:05.9]} 21... Rxe2 {[%clk 0:02:30.9]} 22. Ng4
{[%clk 0:00:04.8]} 22... Rxc2 {[%clk 0:02:31.3]} 23. Ne3 {[%clk 0:00:04.5]}
23... Rxb2 {[%clk 0:02:30.9]} 24. Nd1 {[%clk 0:00:03.1]} 24... Rd2 {[%clk
0:02:28.6]} 0-1

[Event "*** MasterClass Titled Tuesday Blitz"]
[Site "Chess.com"]
[Date "2017.12.05"]
[Round "8"]
[White "d4xaoc"]
[Black "fardinkhan46"]
[Result "0-1"]
[WhiteElo "1196"]
[BlackElo "1470"]
[TimeControl "180+2"]
[EndTime "15:55:40 PST"]
[Termination "fardinkhan46 won by checkmate"]

1. e4 {[%clk 0:03:00.4]} 1... e5 {[%clk 0:02:59.9]} 2. c3 {[%clk 0:02:59.9]}
2... Nc6 {[%clk 0:02:58.6]} 3. Bc4 {[%clk 0:03:00.2]} 3... Nf6 {[%clk
0:02:57.5]} 4. Qb3 {[%clk 0:03:00.5]} 4... Qe7 {[%clk 0:02:43.9]} 5. Nf3 {[%clk
0:03:00.5]} 5... d6 {[%clk 0:02:39.7]} 6. Ng5 {[%clk 0:03:00.5]} 6... Be6 {[%clk
0:02:39.4]} 7. Nxe6 {[%clk 0:02:56.1]} 7... fxe6 {[%clk 0:02:37.1]} 8. Bxe6
{[%clk 0:02:55.6]} 8... Na5 {[%clk 0:02:36.3]} 9. Qb5+ {[%clk 0:02:50.7]} 9...
Nc6 {[%clk 0:02:36.9]} 10. Bd5 {[%clk 0:02:46.9]} 10... Qd7 {[%clk 0:02:28.8]}
11. Qxb7 {[%clk 0:02:42.4]} 11... Rb8 {[%clk 0:02:20.2]} 12. Qa6 {[%clk
0:02:29.1]} 12... Rb6 {[%clk 0:02:12.6]} 13. Qa4 {[%clk 0:02:10.1]} 13... Nxd5
{[%clk 0:02:07.6]} 14. exd5 {[%clk 0:02:10.4]} 14... Nb8 {[%clk 0:02:07.6]} 15.
Qd1 {[%clk 0:02:08.7]} 15... Be7 {[%clk 0:01:56.3]} 16. Qh5+ {[%clk 0:02:08.3]}
16... g6 {[%clk 0:01:55.6]} 17. Qh6 {[%clk 0:02:08]} 17... Qf5 {[%clk
0:01:54.1]} 18. O-O {[%clk 0:02:05.1]} 18... Bg5 {[%clk 0:01:51.4]} 19. Na3
{[%clk 0:02:03.4]} 19... Bxh6 {[%clk 0:01:50.4]} 20. d4 {[%clk 0:01:56.7]} 20...
Qh5 {[%clk 0:01:50.2]} 21. dxe5 {[%clk 0:01:51.6]} 21... Bxc1 {[%clk 0:01:49.5]}
22. Raxc1 {[%clk 0:01:51.8]} 22... dxe5 {[%clk 0:01:48.3]} 23. Rce1 {[%clk
0:01:51.9]} 23... Rxb2 {[%clk 0:01:46.1]} 24. f4 {[%clk 0:01:50.2]} 24... Qg4
{[%clk 0:01:42.1]} 25. Rxe5+ {[%clk 0:01:47.1]} 25... Kf7 {[%clk 0:01:40.2]} 26.
Rg5 {[%clk 0:01:47.4]} 26... Qe2 {[%clk 0:01:36.8]} 27. f5 {[%clk 0:01:45.3]}
27... Qe3+ {[%clk 0:01:28.5]} 28. Kh1 {[%clk 0:01:35]} 28... Qxg5 {[%clk
0:01:21.9]} 29. fxg6+ {[%clk 0:01:35.5]} 29... Kxg6 {[%clk 0:01:22.9]} 30. Nc4
{[%clk 0:01:34.7]} 30... Qxg2# {[%clk 0:01:22.7]} 0-1

[Event "*** MasterClass Titled Tuesday Blitz"]
[Site "Chess.com"]
[Date "2017.12.05"]
[Round "8"]
[White "wanyaland"]
[Black "sandager"]
[Result "1-0"]
[WhiteElo "2235"]
[BlackElo "1978"]
[TimeControl "180+2"]
[EndTime "15:56:01 PST"]
[Termination "wanyaland won on time"]

1. e4 {[%clk 0:03:01.9]} 1... e5 {[%clk 0:02:59.9]} 2. Nf3 {[%clk 0:03:02.2]}
2... Nc6 {[%clk 0:03:00.5]} 3. Bb5 {[%clk 0:03:03.5]} 3... a6 {[%clk 0:03:01.2]}
4. Ba4 {[%clk 0:03:03.5]} 4... Nf6 {[%clk 0:03:01.8]} 5. O-O {[%clk 0:03:04.2]}
5... Be7 {[%clk 0:03:03]} 6. d3 {[%clk 0:03:04]} 6... b5 {[%clk 0:03:01.1]} 7.
Bb3 {[%clk 0:03:04.9]} 7... O-O {[%clk 0:03:02.3]} 8. a4 {[%clk 0:03:05.6]} 8...
Bb7 {[%clk 0:03:00.4]} 9. Nc3 {[%clk 0:03:04.8]} 9... b4 {[%clk 0:02:55.2]} 10.
Ne2 {[%clk 0:03:04.9]} 10... d6 {[%clk 0:02:50.5]} 11. a5 {[%clk 0:03:03.5]}
11... Re8 {[%clk 0:02:48.4]} 12. h3 {[%clk 0:03:03.5]} 12... Bf8 {[%clk
0:02:48.3]} 13. Ng3 {[%clk 0:03:02.5]} 13... g6 {[%clk 0:02:34.5]} 14. Ng5
{[%clk 0:03:02.2]} 14... Re7 {[%clk 0:02:30.7]} 15. Qf3 {[%clk 0:02:57.5]} 15...
Bg7 {[%clk 0:02:27.4]} 16. Qd1 {[%clk 0:02:54]} 16... h6 {[%clk 0:02:25.6]} 17.
Nf3 {[%clk 0:02:53.8]} 17... d5 {[%clk 0:02:07.7]} 18. Qe1 {[%clk 0:02:40.7]}
18... Nd4 {[%clk 0:01:49.1]} 19. Nxd4 {[%clk 0:02:39.3]} 19... exd4 {[%clk
0:01:47.8]} 20. e5 {[%clk 0:02:40.2]} 20... Nd7 {[%clk 0:01:40.5]} 21. f4 {[%clk
0:02:38.8]} 21... Nc5 {[%clk 0:01:38]} 22. Qxb4 {[%clk 0:02:37.5]} 22... Nxb3
{[%clk 0:01:27.9]} 23. cxb3 {[%clk 0:02:35.4]} 23... c5 {[%clk 0:00:39.8]} 24.
Qxc5 {[%clk 0:02:34.2]} 24... Rc8 {[%clk 0:00:37.9]} 25. Qxd4 {[%clk 0:02:33.4]}
25... Rc2 {[%clk 0:00:37.6]} 26. Be3 {[%clk 0:02:29]} 26... Rec7 {[%clk
0:00:27.8]} 27. Rfc1 {[%clk 0:02:27.1]} 27... Qh4 {[%clk 0:00:21.4]} 28. Kh2
{[%clk 0:02:18.6]} 1-0

[Event "*** MasterClass Titled Tuesday Blitz"]
[Site "Chess.com"]
[Date "2017.12.05"]
[Round "8"]
[White "champ2005"]
[Black "johannesh"]
[Result "1-0"]
[WhiteElo "2438"]
[BlackElo "2289"]
[TimeControl "180+2"]
[EndTime "15:56:27 PST"]
[Termination "champ2005 won by resignation"]

1. e4 {[%clk 0:02:52.3]} 1... c6 {[%clk 0:02:59.4]} 2. Nc3 {[%clk 0:02:51.4]}
2... d5 {[%clk 0:02:58.1]} 3. Qf3 {[%clk 0:02:52.9]} 3... dxe4 {[%clk
0:02:49.6]} 4. Nxe4 {[%clk 0:02:53.4]} 4... Nd7 {[%clk 0:02:47.2]} 5. Bc4 {[%clk
0:02:54.1]} 5... Ne5 {[%clk 0:02:28]} 6. Qc3 {[%clk 0:02:48.8]} 6... Nxc4 {[%clk
0:02:22.5]} 7. Qxc4 {[%clk 0:02:50.7]} 7... Qd5 {[%clk 0:02:13.3]} 8. Qe2 {[%clk
0:02:50.2]} 8... Nf6 {[%clk 0:02:05.1]} 9. d3 {[%clk 0:02:47.4]} 9... Nxe4
{[%clk 0:01:47.5]} 10. dxe4 {[%clk 0:02:48.1]} 10... Qa5+ {[%clk 0:01:39.3]} 11.
Bd2 {[%clk 0:02:47.4]} 11... Qb6 {[%clk 0:01:39.1]} 12. Bc3 {[%clk 0:02:47.2]}
12... f6 {[%clk 0:01:11.7]} 13. Nf3 {[%clk 0:02:43.3]} 13... e5 {[%clk
0:01:11.1]} 14. Nxe5 {[%clk 0:02:13.1]} 14... fxe5 {[%clk 0:00:50.7]} 15. Qh5+
{[%clk 0:02:10.8]} 15... Kd8 {[%clk 0:00:48.9]} 16. O-O-O+ {[%clk 0:02:08.4]}
16... Bd7 {[%clk 0:00:47.9]} 17. Rxd7+ {[%clk 0:01:30.4]} 17... Kxd7 {[%clk
0:00:32.7]} 18. Qf7+ {[%clk 0:01:30.5]} 18... Kd6 {[%clk 0:00:02.8]} 19. b4
{[%clk 0:01:24]} 19... Be7 {[%clk 0:00:02.3]} 20. Rd1+ {[%clk 0:01:24.5]} 20...
Kc7 {[%clk 0:00:02.3]} 21. Qxe7+ {[%clk 0:01:25.5]} 21... Kc8 {[%clk 0:00:03.9]}
22. Qd7+ {[%clk 0:01:26.6]} 1-0

[Event "*** MasterClass Titled Tuesday Blitz"]
[Site "Chess.com"]
[Date "2017.12.05"]
[Round "8"]
[White "Rhinos1"]
[Black "MFBerna"]
[Result "0-1"]
[WhiteElo "2040"]
[BlackElo "2297"]
[TimeControl "180+2"]
[EndTime "15:56:51 PST"]
[Termination "MFBerna won by checkmate"]

1. e4 {[%clk 0:02:58.5]} 1... c5 {[%clk 0:02:59.4]} 2. d4 {[%clk 0:02:48.9]}
2... cxd4 {[%clk 0:03:00]} 3. c3 {[%clk 0:02:48.7]} 3... dxc3 {[%clk 0:03:01.9]}
4. Nxc3 {[%clk 0:02:49]} 4... Nc6 {[%clk 0:03:03]} 5. Nf3 {[%clk 0:02:48.2]}
5... e6 {[%clk 0:03:04.1]} 6. Bc4 {[%clk 0:02:48.2]} 6... d6 {[%clk 0:03:04.2]}
7. O-O {[%clk 0:02:48.5]} 7... a6 {[%clk 0:03:05.3]} 8. Qe2 {[%clk 0:02:46]}
8... Nf6 {[%clk 0:03:06.2]} 9. Rd1 {[%clk 0:02:38.9]} 9... Qc7 {[%clk
0:03:06.7]} 10. Bf4 {[%clk 0:02:28.2]} 10... Be7 {[%clk 0:03:06.2]} 11. Rac1
{[%clk 0:02:22.3]} 11... O-O {[%clk 0:03:05.8]} 12. a3 {[%clk 0:01:54.3]} 12...
e5 {[%clk 0:03:03.2]} 13. Be3 {[%clk 0:01:52.1]} 13... Bg4 {[%clk 0:03:03.7]}
14. Nd5 {[%clk 0:01:50.6]} 14... Qd8 {[%clk 0:02:49.5]} 15. Bb6 {[%clk
0:01:47.1]} 15... Qd7 {[%clk 0:02:50.2]} 16. Be3 {[%clk 0:01:45.5]} 16... Bd8
{[%clk 0:02:43.5]} 17. Ba2 {[%clk 0:01:38.5]} 17... Nxe4 {[%clk 0:02:42.6]} 18.
h3 {[%clk 0:01:32.1]} 18... Be6 {[%clk 0:02:42.2]} 19. Bb6 {[%clk 0:01:28.1]}
19... f5 {[%clk 0:02:41.2]} 20. Bxd8 {[%clk 0:01:26.1]} 20... Qxd8 {[%clk
0:02:42.7]} 21. b4 {[%clk 0:01:00.6]} 21... Kh8 {[%clk 0:02:37.5]} 22. b5 {[%clk
0:01:01.1]} 22... axb5 {[%clk 0:02:38.1]} 23. Qxb5 {[%clk 0:01:03]} 23... Rxa3
{[%clk 0:02:37.7]} 24. Qxb7 {[%clk 0:00:56.5]} 24... Rxa2 {[%clk 0:02:38.6]} 25.
Rxc6 {[%clk 0:00:52.6]} 25... Nxf2 {[%clk 0:02:30.7]} 26. Nc7 {[%clk 0:00:21.6]}
26... Bc8 {[%clk 0:02:28.6]} 27. Rcxd6 {[%clk 0:00:18]} 27... Qxd6 {[%clk
0:02:27.3]} 28. Rxd6 {[%clk 0:00:16.8]} 28... Bxb7 {[%clk 0:02:28.1]} 29. Ne6
{[%clk 0:00:17.3]} 29... Rg8 {[%clk 0:02:24.9]} 30. Nxe5 {[%clk 0:00:18.2]}
30... h5 {[%clk 0:02:14.7]} 31. Ng5 {[%clk 0:00:14.9]} 31... Re8 {[%clk
0:02:05.8]} 32. Ng6+ {[%clk 0:00:05.5]} 32... Kg8 {[%clk 0:02:06.5]} 33. Rd7
{[%clk 0:00:06.8]} 33... Re1+ {[%clk 0:01:53.6]} 34. Kh2 {[%clk 0:00:07.1]}
34... Ng4+ {[%clk 0:01:54.8]} 35. hxg4 {[%clk 0:00:07.4]} 35... Rxg2+ {[%clk
0:01:54.5]} 36. Kh3 {[%clk 0:00:05.8]} 36... Rh1# {[%clk 0:01:56.1]} 0-1

[Event "*** MasterClass Titled Tuesday Blitz"]
[Site "Chess.com"]
[Date "2017.12.05"]
[Round "8"]
[White "Grebeniuk-S"]
[Black "Vojtastr"]
[Result "1-0"]
[WhiteElo "2399"]
[BlackElo "2390"]
[TimeControl "180+2"]
[EndTime "15:57:11 PST"]
[Termination "Grebeniuk-S won by resignation"]

1. d4 {[%clk 0:02:57.5]} 1... Nf6 {[%clk 0:03:00.1]} 2. c3 {[%clk 0:02:58.2]}
2... c5 {[%clk 0:03:00.4]} 3. Nf3 {[%clk 0:02:57.6]} 3... e6 {[%clk 0:03:00.9]}
4. e3 {[%clk 0:02:56.1]} 4... Nc6 {[%clk 0:03:01.6]} 5. Nbd2 {[%clk 0:02:57.1]}
5... d5 {[%clk 0:03:02.6]} 6. Bd3 {[%clk 0:02:58.5]} 6... Bd6 {[%clk 0:03:03.4]}
7. O-O {[%clk 0:03:00]} 7... O-O {[%clk 0:03:04.6]} 8. dxc5 {[%clk 0:03:01.9]}
8... Bxc5 {[%clk 0:03:05.5]} 9. e4 {[%clk 0:03:03.8]} 9... dxe4 {[%clk
0:02:57.9]} 10. Nxe4 {[%clk 0:03:04.8]} 10... Nxe4 {[%clk 0:02:59.4]} 11. Bxe4
{[%clk 0:03:06.7]} 11... e5 {[%clk 0:02:53.9]} 12. Bxc6 {[%clk 0:02:47]} 12...
bxc6 {[%clk 0:02:54.6]} 13. Nxe5 {[%clk 0:02:47.3]} 13... Qf6 {[%clk 0:02:47]}
14. Nd7 {[%clk 0:02:39.2]} 14... Bxd7 {[%clk 0:02:43.3]} 15. Qxd7 {[%clk
0:02:41.1]} 15... Rad8 {[%clk 0:02:44.2]} 16. Qg4 {[%clk 0:02:42.6]} 16... Rd5
{[%clk 0:02:26.4]} 17. Bf4 {[%clk 0:02:07.2]} 17... h5 {[%clk 0:02:25.1]} 18.
Qg3 {[%clk 0:02:07.3]} 18... Rf5 {[%clk 0:02:16.6]} 19. Be3 {[%clk 0:02:06]}
19... h4 {[%clk 0:02:16.1]} 20. Qh3 {[%clk 0:02:02.3]} 20... Bd6 {[%clk
0:02:10.4]} 21. Rad1 {[%clk 0:01:59.2]} 21... Bb8 {[%clk 0:02:01]} 22. Rd4
{[%clk 0:01:50.2]} 22... g5 {[%clk 0:01:59.7]} 23. Rfd1 {[%clk 0:01:50.5]} 23...
Qg6 {[%clk 0:01:50.8]} 24. Qg4 {[%clk 0:01:46]} 24... Be5 {[%clk 0:01:44.7]} 25.
Rd7 {[%clk 0:01:38.9]} 25... Bf4 {[%clk 0:01:41.8]} 26. Bxa7 {[%clk 0:01:30.2]}
26... Ra5 {[%clk 0:01:30.4]} 27. a3 {[%clk 0:01:24.1]} 27... Qe4 {[%clk
0:01:16.5]} 28. R7d4 {[%clk 0:01:06.8]} 28... f5 {[%clk 0:00:57.1]} 29. Qh5
{[%clk 0:00:54.9]} 29... Qe7 {[%clk 0:00:41.2]} 30. Rd7 {[%clk 0:00:46.2]} 30...
Rd5 {[%clk 0:00:40.8]} 31. Rxe7 {[%clk 0:00:43.9]} 1-0

[Event "*** MasterClass Titled Tuesday Blitz"]
[Site "Chess.com"]
[Date "2017.12.05"]
[Round "8"]
[White "Tash_Boy"]
[Black "saraswathii"]
[Result "1-0"]
[WhiteElo "2442"]
[BlackElo "2307"]
[TimeControl "180+2"]
[EndTime "15:57:14 PST"]
[Termination "Tash_Boy won by resignation"]

1. e4 {[%clk 0:02:51.1]} 1... c5 {[%clk 0:03:00.2]} 2. Nf3 {[%clk 0:02:51.7]}
2... e6 {[%clk 0:03:01]} 3. d4 {[%clk 0:02:53.1]} 3... cxd4 {[%clk 0:03:01.5]}
4. Nxd4 {[%clk 0:02:55]} 4... Nf6 {[%clk 0:03:02.3]} 5. Nc3 {[%clk 0:02:55.1]}
5... Nc6 {[%clk 0:03:03.2]} 6. Ndb5 {[%clk 0:02:54.4]} 6... Bb4 {[%clk
0:03:03.2]} 7. Bf4 {[%clk 0:02:54.2]} 7... Nxe4 {[%clk 0:02:59.6]} 8. Nc7+
{[%clk 0:02:53.2]} 8... Ke7 {[%clk 0:02:44.7]} 9. Qf3 {[%clk 0:02:47.1]} 9... d5
{[%clk 0:02:37.5]} 10. Nxa8 {[%clk 0:02:31]} 10... Qa5 {[%clk 0:02:28.3]} 11.
Bd3 {[%clk 0:01:55]} 11... Nxc3 {[%clk 0:02:20.1]} 12. O-O {[%clk 0:01:51.2]}
12... Nb5 {[%clk 0:01:47.6]} 13. Qg3 {[%clk 0:01:44.3]} 13... g6 {[%clk
0:01:38]} 14. a4 {[%clk 0:01:42.1]} 14... Nd6 {[%clk 0:01:21.4]} 15. c3 {[%clk
0:01:41.2]} 15... Bc5 {[%clk 0:01:20.5]} 16. b4 {[%clk 0:01:41.3]} 16... Nxb4
{[%clk 0:01:21.6]} 17. cxb4 {[%clk 0:01:42]} 17... Bxb4 {[%clk 0:01:21.9]} 18.
Rac1 {[%clk 0:01:31.7]} 18... Bd7 {[%clk 0:01:13.7]} 19. Nc7 {[%clk 0:01:25.5]}
19... a6 {[%clk 0:01:10.2]} 20. Be5 {[%clk 0:01:22.1]} 20... Rc8 {[%clk
0:01:07.6]} 21. Qh4+ {[%clk 0:01:20.4]} 21... Kf8 {[%clk 0:01:07.2]} 22. Qh6+
{[%clk 0:01:17.6]} 22... Ke7 {[%clk 0:01:07.3]} 23. Qg7 {[%clk 0:01:15.5]} 23...
Bc6 {[%clk 0:00:32.9]} 24. Qf6+ {[%clk 0:01:04.7]} 24... Kd7 {[%clk 0:00:24.7]}
25. Nxe6 {[%clk 0:00:58]} 25... fxe6 {[%clk 0:00:21.5]} 26. Qg7+ {[%clk
0:00:58.4]} 26... Ke8 {[%clk 0:00:21.4]} 27. Qxh7 {[%clk 0:00:58.9]} 27... Nf7
{[%clk 0:00:21.7]} 28. Bxg6 {[%clk 0:00:57.4]} 1-0

[Event "*** MasterClass Titled Tuesday Blitz"]
[Site "Chess.com"]
[Date "2017.12.05"]
[Round "8"]
[White "AndrewMcStone"]
[Black "Angry_Serb"]
[Result "0-1"]
[WhiteElo "2116"]
[BlackElo "2342"]
[TimeControl "180+2"]
[EndTime "15:57:16 PST"]
[Termination "Angry_Serb won by resignation"]

1. d4 {[%clk 0:03:01.8]} 1... e6 {[%clk 0:03:00]} 2. c4 {[%clk 0:03:02.8]} 2...
c5 {[%clk 0:03:01.4]} 3. d5 {[%clk 0:03:02.8]} 3... exd5 {[%clk 0:03:02.7]} 4.
cxd5 {[%clk 0:03:04.6]} 4... d6 {[%clk 0:03:04.2]} 5. Nc3 {[%clk 0:03:05.8]}
5... g6 {[%clk 0:03:05.4]} 6. e4 {[%clk 0:03:06.9]} 6... Bg7 {[%clk 0:03:06.8]}
7. Nge2 {[%clk 0:03:08.2]} 7... Ne7 {[%clk 0:03:06.9]} 8. Ng3 {[%clk 0:03:07]}
8... O-O {[%clk 0:03:08.1]} 9. Be2 {[%clk 0:03:05.6]} 9... f5 {[%clk 0:03:09.1]}
10. exf5 {[%clk 0:02:45.4]} 10... Nxf5 {[%clk 0:03:11]} 11. O-O {[%clk
0:02:40.2]} 11... Nd4 {[%clk 0:03:09.9]} 12. Bg4 {[%clk 0:02:33.3]} 12... Na6
{[%clk 0:02:54.8]} 13. Bxc8 {[%clk 0:02:13.1]} 13... Rxc8 {[%clk 0:02:47.2]} 14.
Qg4 {[%clk 0:02:10.5]} 14... Rc7 {[%clk 0:02:47.8]} 15. Bg5 {[%clk 0:02:08.6]}
15... Qd7 {[%clk 0:02:31.1]} 16. Qh4 {[%clk 0:02:02.7]} 16... Nb4 {[%clk
0:02:23.9]} 17. Rae1 {[%clk 0:01:52.1]} 17... Re8 {[%clk 0:02:16.6]} 18. Nge4
{[%clk 0:01:23.1]} 18... Nf5 {[%clk 0:02:07.4]} 19. Qf4 {[%clk 0:01:23.8]} 19...
Rf8 {[%clk 0:01:59.7]} 20. Qd2 {[%clk 0:01:15.1]} 20... h6 {[%clk 0:01:55.6]}
21. Bf4 {[%clk 0:01:09.2]} 21... g5 {[%clk 0:01:56]} 22. Bg3 {[%clk 0:01:08.6]}
22... c4 {[%clk 0:01:37.5]} 23. Re2 {[%clk 0:00:31.7]} 23... Nd3 {[%clk
0:01:36.3]} 24. h3 {[%clk 0:00:22.7]} 24... b5 {[%clk 0:01:36.1]} 25. a3 {[%clk
0:00:21.7]} 25... Rcc8 {[%clk 0:01:20.2]} 26. a4 {[%clk 0:00:19.8]} 26... a6
{[%clk 0:01:20.7]} 27. axb5 {[%clk 0:00:20.3]} 27... axb5 {[%clk 0:01:22.6]} 28.
b4 {[%clk 0:00:21]} 28... Ra8 {[%clk 0:01:12.8]} 29. h4 {[%clk 0:00:21.1]} 29...
gxh4 {[%clk 0:01:11.8]} 30. Bf4 {[%clk 0:00:19.6]} 30... Nxf4 {[%clk 0:01:06.7]}
31. Qxf4 {[%clk 0:00:19.8]} 31... Nd4 {[%clk 0:01:07.6]} 32. Nf6+ {[%clk
0:00:14.6]} 32... Bxf6 {[%clk 0:01:05.9]} 0-1